bitfinex-derivatives/quotes_BTCF0:USTF0_20240917
["timestamp","ask_amount","ask_price","bid_price","bid_amount"]
[1726602565922,0.00250904,59791.0,59784.0,0.1807]
[1726602566309,0.00250904,59791.0,59783.0,0.3608]
[1726602566310,0.45,59785.0,59783.0,0.3608]
[1726602566514,0.39309433,59784.0,59780.0,0.00250904]
[1726602566823,0.03229433,59783.0,59780.0,0.08612704]
[1726602567025,0.00250904,59791.0,59782.0,0.3608]
[1726602567218,0.00250904,59791.0,59788.0,0.083607]
[1726602567413,0.00250904,59791.0,59785.0,0.3608]
[1726602567609,0.00250904,59791.0,59790.0,0.083605]
[1726602568410,0.00250904,59791.0,59785.0,0.3608]
[1726602568714,0.00250904,59791.0,59781.0,0.3608]
[1726602568715,0.00250904,59791.0,59781.0,0.8108]
[1726602568920,0.3608,59795.0,59781.0,0.3608]
[1726602569622,0.083605,59791.0,59781.0,0.444417]
[1726602569830,0.3608,59795.0,59786.0,0.083609]
[1726602570120,0.3608,59795.0,59781.0,0.3608]
[1726602570326,0.083601,59793.0,59781.0,0.3608]
[1726602570525,0.3608,59795.0,59786.0,0.083609]
[1726602570718,0.083599,59794.0,59786.0,0.083609]
[1726602570914,0.083599,59794.0,59787.0,0.083609]
[1726602571319,0.3608,59795.0,59783.0,0.083614]
[1726602571712,0.083603,59792.0,59786.0,0.08361]
[1726602572119,0.3608,59795.0,59786.0,0.08361]
[1726602572314,0.3608,59795.0,59781.0,0.3608]
[1726602572315,0.3608,59789.0,59781.0,0.444416]
[1726602572530,0.083599,59794.0,59786.0,0.08361]
[1726602572823,0.083599,59794.0,59787.0,0.083609]
[1726602573445,0.3608,59795.0,59782.0,0.083615]
[1726602573615,0.083609,59788.0,59782.0,0.083615]
[1726602573823,0.45410895,59798.0,59778.0,0.00250895]
[1726602573824,0.3608,59784.0,59778.0,0.00250895]
[1726602574330,0.89442,59779.0,59778.0,0.00250895]
[1726602574817,0.97804,59779.0,59778.0,0.00250895]
[1726602575018,0.083644,59762.0,59752.0,0.3608]
[1726602575222,0.3608,59768.0,59752.0,0.5574]
[1726602575523,0.083641,59764.0,59761.0,0.444445]
[1726602576127,0.3608,59768.0,59761.0,0.3608]
[1726602576428,0.45164,59769.0,59761.0,0.3608]
[1726602576620,0.08614389,59770.0,59761.0,0.3608]
[1726602576821,0.08614389,59770.0,59759.0,0.3608]
[1726602577016,0.3608,59768.0,59763.0,0.083642]
[1726602577416,0.083638,59767.0,59763.0,0.083642]
[1726602577719,0.3608,59768.0,59758.0,0.00250988]
[1726602578320,0.3608,59768.0,59765.0,0.08364]
[1726602578813,0.00250989,59770.0,59769.0,0.083634]
[1726602579218,0.3608,59780.0,59769.0,1.10192]
[1726602579417,0.3608,59785.0,59773.0,0.3608]
[1726602579623,0.3608,59785.0,59769.0,0.00250943]
[1726602579624,0.07324641,59784.0,59778.0,0.083621]
[1726602579828,0.444413,59785.0,59774.0,0.2019]
[1726602579829,0.03229933,59783.0,59774.0,0.2019]
[1726602580019,0.03229793,59782.0,59779.0,0.083619]
[1726602580216,0.3608,59785.0,59774.0,0.2019]
[1726602580416,0.03229836,59784.0,59782.0,0.083616]
[1726602580625,0.03229836,59783.0,59782.0,0.083616]
[1726602581017,0.00250928,59788.0,59787.0,0.083609]
[1726602581224,0.03480583,59788.0,59783.0,0.083614]
[1726602581421,0.03229655,59787.0,59784.0,0.083612]
[1726602581731,0.03229655,59786.0,59784.0,0.083612]
[1726602581919,0.083612,59786.0,59780.0,0.025]
[1726602582232,0.03229583,59785.0,59780.0,0.025]
[1726602582420,0.083617,59781.0,59780.0,0.025]
[1726602582627,0.083613,59784.0,59780.0,0.025]
[1726602582924,0.11591269,59783.0,59780.0,0.025]
[1726602583229,0.083633,59770.0,59757.0,0.3608]
[1726602583434,0.60131119,59770.0,59757.0,0.3608]
[1726602583732,0.083648,59759.0,59751.0,0.3608]
[1726602583920,0.96769319,59759.0,59751.0,0.3608]
[1726602584328,1.05134119,59759.0,59749.0,0.1877]
[1726602584717,1.05134119,59759.0,59746.0,0.08966648]
[1726602584926,1.05134119,59759.0,59746.0,0.083666]
[1726602585117,1.24484519,59759.0,59741.0,0.444473]
[1726602585330,0.083666,59747.0,59741.0,0.3608]
[1726602585528,0.083666,59747.0,59743.0,0.00251075]
[1726602585728,0.3608,59751.0,59744.0,0.083669]
[1726602585937,0.03231587,59750.0,59744.0,0.083669]
[1726602586136,0.03231587,59749.0,59745.0,0.083668]
[1726602586429,0.3608,59751.0,59746.0,0.083665]
[1726602586621,0.03231622,59750.0,59746.0,0.083665]
[1726602586823,0.3608,59751.0,59746.0,0.083665]
[1726602587123,0.3608,59751.0,59743.0,0.00251075]
[1726602587124,0.0323163,59750.0,59747.0,0.083664]
[1726602587325,0.3608,59751.0,59747.0,0.083664]
[1726602588231,0.3608,59751.0,59743.0,0.00251075]
[1726602588447,0.3608,59751.0,59748.0,0.083663]
[1726602588837,0.3608,59751.0,59743.0,0.08618075]
[1726602589136,0.3608,59751.0,59743.0,0.00251075]
[1726602589435,0.3608,59751.0,59748.0,0.083662]
[1726602589634,0.3608,59751.0,59748.0,0.07858436]
[1726602589933,0.3608,59751.0,59750.0,0.083661]
[1726602590736,0.00251076,59753.0,59752.0,0.083658]
[1726602590925,0.00251076,59753.0,59752.0,0.444458]
[1726602591129,0.00251076,59753.0,59752.0,0.083658]
[1726602592035,0.00251076,59753.0,59752.0,0.08958712]
[1726602592338,0.3608,59759.0,59758.0,0.083649]
[1726602592538,0.45,59769.0,59752.0,0.00592912]
[1726602592539,0.3608,59764.0,59761.0,0.083645]
[1726602593543,0.3608,59764.0,59757.0,0.083651]
[1726602593737,0.3608,59764.0,59759.0,0.083648]
[1726602593931,0.3608,59764.0,59761.0,0.083645]
[1726602594834,0.3608,59771.0,59768.0,0.083634]
[1726602595040,0.3608,59771.0,59765.0,0.00250966]
[1726602595345,0.00251031,59773.0,59765.0,0.00250966]
[1726602595637,0.00251031,59773.0,59770.0,0.3608]
[1726602595839,0.167262,59771.0,59770.0,0.22691337]
[1726602596039,0.167262,59771.0,59765.0,0.00250966]
[1726602596040,0.167276,59766.0,59765.0,0.00250966]
[1726602596248,0.69053316,59766.0,59765.0,0.00250966]
[1726602596430,0.88733554,59766.0,59765.0,0.00250966]
[1726602596631,2.20463133,59766.0,59765.0,0.00250966]
[1726602597027,0.00251041,59760.0,59754.0,0.3608]
[1726602597232,0.083651,59757.0,59754.0,0.3608]
[1726602597426,0.07325716,59756.0,59754.0,0.3608]
[1726602597637,0.07325716,59759.0,59755.0,0.08616223]
[1726602597831,0.07325716,59759.0,59755.0,0.00251023]
[1726602598447,0.07326589,59758.0,59755.0,0.00251023]
[1726602598648,0.083652,59756.0,59755.0,0.00251023]
[1726602598849,0.15691789,59756.0,59755.0,0.00251023]
[1726602599044,0.24056989,59756.0,59755.0,0.00251023]
[1726602599239,0.15691789,59756.0,59755.0,0.00251023]
[1726602599739,0.51771789,59756.0,59755.0,0.00251023]
[1726602599937,0.56906815,59756.0,59755.0,0.00251023]
[1726602600138,0.20826815,59756.0,59755.0,0.00251023]
[1726602600348,0.00172001,59759.0,59755.0,1.77411023]
[1726602600548,0.14793391,59776.0,59774.0,0.083627]
[1726602600847,0.14793391,59776.0,59755.0,0.36924025]
[1726602600848,0.8108,59775.0,59755.0,0.36924025]
[1726602601053,0.45,59767.0,59755.0,0.36331023]
[1726602601254,0.45,59761.0,59755.0,0.36331023]
[1726602601448,0.083652,59756.0,59755.0,0.00251023]
[1726602601765,0.13500019,59756.0,59755.0,0.00251023]
[1726602601936,0.083663,59748.0,59747.0,0.3608]
[1726602602141,0.083663,59748.0,59743.0,0.00251075]
[1726602602142,0.05135111,59748.0,59743.0,0.00251075]
[1726602602344,0.16158215,59750.0,59743.0,0.00251075]
[1726602602345,0.14562043,59750.0,59749.0,0.083662]
[1726602602542,0.14570431,59750.0,59749.0,0.083662]
[1726602602747,0.14570431,59751.0,59750.0,0.083661]
[1726602602946,0.00251085,59755.0,59754.0,0.083655]
[1726602603237,0.00251085,59755.0,59749.0,0.3608]
[1726602603647,0.3608,59753.0,59745.0,0.083667]
[1726602603836,0.3608,59753.0,59743.0,0.00251075]
[1726602604035,0.00251085,59755.0,59749.0,0.3608]
[1726602604544,0.00251085,59755.0,59752.0,0.083657]
[1726602604748,0.00251085,59755.0,59749.0,0.3608]
[1726602604749,0.083657,59753.0,59749.0,0.3608]
[1726602604949,0.08366,59751.0,59749.0,0.3608]
[1726602605135,0.3608,59753.0,59743.0,0.00251075]
[1726602605339,0.3608,59745.0,59736.0,0.3608]
[1726602605638,0.8108,59753.0,59736.0,0.36665094]
[1726602605860,0.083675,59740.0,59736.0,0.45033094]
[1726602606058,0.3608,59746.0,59736.0,0.36665094]
[1726602606348,0.3608,59741.0,59733.0,0.00251113]
[1726602606543,0.083681,59736.0,59733.0,0.00251113]
[1726602606741,0.3608,59741.0,59733.0,0.00251113]
[1726602606742,0.3608,59741.0,59736.0,0.08368]
[1726602606940,0.08368,59736.0,59733.0,0.00251113]
[1726602607344,0.083675,59740.0,59736.0,0.08368]
[1726602607548,0.3608,59741.0,59733.0,0.00251113]
[1726602607745,0.083675,59740.0,59733.0,0.00251113]
[1726602607948,0.3608,59741.0,59738.0,0.083677]
[1726602608144,0.083675,59740.0,59738.0,0.083677]
[1726602608454,0.9608,59741.0,59729.0,0.00582029]
[1726602608744,0.45,59742.0,59711.0,0.083715]
[1726602608745,0.7216,59730.0,59711.0,0.083715]
[1726602608948,0.00251294,59715.0,59706.0,0.36677586]
[1726602609153,0.00251294,59715.0,59706.0,0.3608]
[1726602609353,0.00251294,59715.0,59709.0,0.083717]
[1726602609543,0.00251294,59715.0,59706.0,0.3608]
[1726602609544,0.3608,59713.0,59710.0,0.083717]
[1726602609855,0.3608,59713.0,59711.0,0.083715]
[1726602610044,0.45,59712.0,59707.0,0.50244]
[1726602610250,0.3608,59713.0,59706.0,0.50821021]
[1726602610440,0.3608,59713.0,59707.0,0.50244]
[1726602610642,0.3608,59713.0,59706.0,0.50244]
[1726602610991,0.8108,59707.0,59699.0,0.0059162]
[1726602611251,0.00251358,59698.0,59689.0,0.00251303]
[1726602611445,0.45,59692.0,59689.0,0.00251303]
[1726602611836,0.083745,59690.0,59689.0,0.00251303]
[1726602613257,0.083745,59690.0,59680.0,0.3608]
[1726602613258,1.1026,59690.0,59680.0,0.3608]
[1726602613445,1.1026,59690.0,59660.0,0.0664919]
[1726602613446,0.45,59682.0,59670.0,0.083772]
[1726602613644,0.45,59682.0,59667.0,0.1955]
[1726602613645,0.3608,59679.0,59667.0,0.19801393]
[1726602613840,0.3608,59679.0,59671.0,0.00586195]
[1726602613841,0.083765,59676.0,59671.0,0.00586195]
[1726602614148,0.083769,59673.0,59668.0,0.00251378]
[1726602614541,0.444569,59673.0,59668.0,0.00251378]
[1726602615059,0.3608,59673.0,59668.0,0.00251378]
[1726602615655,0.00108,59676.0,59669.0,0.3608]
[1726602615853,0.3608,59680.0,59679.0,0.08376]
[1726602616151,0.8108,59693.0,59679.0,0.60837542]
[1726602616355,0.3608,59693.0,59690.0,0.083744]
[1726602616542,0.3608,59693.0,59691.0,0.083743]
[1726602616745,0.00251321,59694.0,59692.0,0.083742]
[1726602616944,0.00251321,59694.0,59692.0,0.444542]
[1726602617645,0.00251298,59708.0,59697.0,0.083734]
[1726602617849,0.45,59705.0,59697.0,0.083734]
[1726602618051,0.45,59705.0,59695.0,0.3608]
[1726602618252,0.45,59705.0,59701.0,0.3608]
[1726602618451,0.45,59705.0,59697.0,0.00251268]
[1726602618643,0.45,59698.0,59697.0,0.00251268]
[1726602618842,0.3913532,59698.0,59697.0,0.00251268]
[1726602619545,0.3608,59714.0,59697.0,0.00251268]
[1726602619546,0.45,59703.0,59697.0,0.083735]
[1726602619741,0.45,59703.0,59698.0,0.083733]
[1726602620157,0.45,59703.0,59694.0,0.36934879]
[1726602620852,0.3608,59696.0,59695.0,0.50252]
[1726602621068,0.083711,59715.0,59695.0,0.86332]
[1726602621355,0.3608,59722.0,59714.0,0.45]
[1726602621547,0.3608,59723.0,59715.0,0.5886]
[1726602621744,0.3608,59723.0,59715.0,0.672309]
[1726602622350,0.444499,59723.0,59715.0,0.5886]
[1726602622944,0.3608,59723.0,59715.0,0.5886]
[1726602623547,0.3608,59723.0,59721.0,0.083701]
[1726602623748,0.00251187,59725.0,59723.0,0.083698]
[1726602624055,0.3608,59729.0,59720.0,0.3633117]
[1726602624256,0.3608,59736.0,59726.0,0.083694]
[1726602624257,0.44448,59736.0,59726.0,0.083694]
[1726602624552,0.44448,59736.0,59720.0,0.3633117]
[1726602624759,0.00251099,59742.0,59735.0,0.3608]
[1726602625150,0.00251099,59742.0,59741.0,0.3608]
[1726602625361,1e-08,59742.0,59741.0,0.3608]
[1726602625557,0.45,59763.0,59741.0,0.3608]
[1726602625558,0.3608,59762.0,59741.0,1.46296]
[1726602625754,0.3608,59762.0,59752.0,0.444457]
[1726602625957,0.3608,59762.0,59747.0,0.3608]
[1726602626152,0.3608,59762.0,59752.0,0.3608]
[1726602626355,0.3608,59762.0,59744.0,0.00251055]
[1726602626356,0.3608,59753.0,59744.0,0.00251055]
[1726602626556,0.083684,59733.0,59714.0,0.3608]
[1726602626859,0.083684,59733.0,59732.0,0.00143059]
[1726602626860,0.894484,59733.0,59732.0,0.00143059]
[1726602627059,1.996724,59733.0,59732.0,0.00143059]
[1726602627358,0.3608,59733.0,59732.0,0.00143059]
[1726602627956,0.8108,59733.0,59732.0,0.00143059]
[1726602628162,0.3608,59735.0,59732.0,0.00143059]
[1726602628354,0.00251167,59736.0,59732.0,0.00143059]
[1726602628757,0.8108,59733.0,59732.0,0.00143059]
[1726602628954,0.533676,59739.0,59732.0,0.00143059]
[1726602629153,0.083679,59737.0,59732.0,0.00143059]
[1726602629360,0.45,59739.0,59732.0,0.00143059]
[1726602629361,0.08368,59736.0,59732.0,0.00143059]
[1726602629552,0.45096001,59739.0,59732.0,0.00143059]
[1726602629553,0.45,59733.0,59732.0,0.00143059]
[1726602631250,0.3608,59735.0,59732.0,0.00143059]
[1726602631657,0.3608,59735.0,59733.0,0.083684]
[1726602631861,0.3608,59740.0,59733.0,0.50224]
[1726602632059,0.08461801,59752.0,59742.0,0.083671]
[1726602632248,0.083658,59752.0,59742.0,0.083671]
[1726602632451,0.45,59752.0,59736.0,0.3608]
[1726602632656,0.083674,59741.0,59736.0,0.3608]
[1726602632953,0.3608,59746.0,59734.0,0.2052]
[1726602632954,0.07329435,59740.0,59734.0,0.2052]
[1726602633155,0.3608,59746.0,59734.0,0.2052]
[1726602633156,0.43409435,59739.0,59734.0,0.2052]
[1726602633357,0.07329435,59738.0,59734.0,0.2052]
[1726602633662,0.12465246,59737.0,59734.0,0.2052]
[1726602633860,0.21899866,59736.0,59734.0,0.2052]
[1726602634161,0.07329435,59735.0,59734.0,0.2052]
[1726602634353,0.03232047,59735.0,59734.0,0.2052]
[1726602634756,0.03232047,59738.0,59734.0,0.2052]
[1726602634956,0.03232139,59737.0,59735.0,0.083682]
[1726602635155,0.00251104,59744.0,59736.0,0.3608]
[1726602635156,0.14570431,59744.0,59736.0,0.3608]
[1726602635350,0.50650431,59746.0,59736.0,0.3608]
[1726602635561,0.3608,59746.0,59736.0,0.3608]
[1726602635761,0.05135267,59745.0,59736.0,0.3608]
[1726602635963,0.50650431,59746.0,59745.0,0.083668]
[1726602635964,0.3608,59746.0,59745.0,0.083668]
[1726602636265,0.14570431,59749.0,59746.0,0.083665]
[1726602636455,0.14570431,59750.0,59746.0,0.083665]
[1726602636653,0.19705419,59749.0,59742.0,0.00251045]
[1726602636849,0.3608,59747.0,59742.0,0.00251045]
[1726602637054,0.08367,59743.0,59742.0,0.00251045]
[1726602637254,0.13502384,59743.0,59742.0,0.00251045]
[1726602637456,0.3608,59747.0,59742.0,0.00251045]
[1726602637457,0.50650431,59747.0,59742.0,0.00251045]
[1726602637651,0.3608,59747.0,59746.0,0.083666]
[1726602638069,0.14570431,59752.0,59751.0,0.083659]
[1726602638265,0.00251092,59756.0,59751.0,0.3608]
[1726602638467,0.19955969,59756.0,59755.0,0.083654]
[1726602638663,0.05385538,59756.0,59755.0,0.05831269]
[1726602639264,0.00251092,59756.0,59751.0,0.444459]
[1726602639471,0.00251092,59756.0,59746.0,0.3608]
[1726602639865,0.00251092,59756.0,59744.0,0.00088]
[1726602640167,0.00251092,59756.0,59743.0,0.08367]
[1726602640368,0.083663,59748.0,59745.0,0.3608]
[1726602641259,0.444458,59752.0,59745.0,0.3608]
[1726602641467,0.00251092,59756.0,59745.0,0.3608]
[1726602641658,0.00251092,59756.0,59745.0,0.444467]
[1726602641857,0.00251092,59756.0,59745.0,0.3608]
[1726602642058,0.3608,59753.0,59745.0,0.3608]
[1726602642362,0.45,59755.0,59745.0,0.3608]
[1726602642363,0.083663,59748.0,59745.0,0.3608]
[1726602642869,0.083665,59747.0,59745.0,0.3608]
[1726602643956,0.16734,59743.0,59742.0,0.00251045]
[1726602644268,0.53367,59743.0,59742.0,0.00251045]
[1726602644461,0.61734,59743.0,59742.0,0.00251045]
[1726602645374,0.16734,59743.0,59742.0,0.00251045]
[1726602645867,0.00251122,59746.0,59745.0,0.083668]
[1726602646274,0.3608,59758.0,59755.0,0.083654]
[1726602646567,0.3608,59762.0,59755.0,0.083654]
[1726602646770,0.3608,59762.0,59756.0,0.083652]
[1726602646978,0.3608,59762.0,59750.0,0.45]
[1726602646979,0.45,59759.0,59745.0,0.001]
[1726602647268,0.083661,59751.0,59745.0,0.00615717]
[1726602647568,0.083661,59751.0,59747.0,0.083665]
[1726602648170,0.3608,59750.0,59745.0,0.3608]
[1726602648367,0.083665,59748.0,59745.0,0.3608]
[1726602648773,0.3608,59750.0,59745.0,0.3608]
[1726602648977,0.08367,59743.0,59742.0,0.00251045]
[1726602649272,0.3608,59750.0,59742.0,0.00251045]
[1726602649273,0.083665,59748.0,59742.0,0.00251045]
[1726602649469,0.083665,59747.0,59742.0,0.00251045]
[1726602649878,0.3608,59750.0,59746.0,0.083666]
[1726602650064,0.3608,59750.0,59749.0,0.083662]
[1726602650373,0.00251101,59754.0,59746.0,0.45]
[1726602650672,0.00251101,59754.0,59750.0,0.08366]
[1726602650858,0.00251101,59754.0,59746.0,0.45]
[1726602651058,0.00251101,59754.0,59751.0,0.3608]
[1726602651663,0.00251101,59754.0,59751.0,0.083659]
[1726602651864,0.00251101,59754.0,59753.0,0.083656]
[1726602652063,0.00251101,59754.0,59751.0,0.3608]
[1726602652271,0.083636,59768.0,59753.0,0.45]
[1726602652472,0.083636,59768.0,59762.0,0.083643]
[1726602652669,0.083637,59767.0,59761.0,0.3608]
[1726602652864,0.3608,59775.0,59756.0,0.3608]
[1726602653066,1e-08,59766.0,59765.0,0.53364]
[1726602653364,0.00085121,59777.0,59776.0,0.083624]
[1726602653561,0.00085121,59777.0,59762.0,0.36330953]
[1726602653562,0.00085121,59777.0,59767.0,0.3608]
[1726602653980,0.083625,59776.0,59767.0,0.3608]
[1726602654163,0.00085121,59777.0,59767.0,0.3608]
[1726602654164,0.00085121,59777.0,59776.0,0.083624]
[1726602654966,0.00085121,59777.0,59773.0,0.00250902]
[1726602654967,0.00085264,59779.0,59773.0,0.08613702]
[1726602655163,0.00085264,59779.0,59778.0,0.3608]
[1726602655468,0.083627,59774.0,59773.0,0.00250902]
[1726602655875,0.11593158,59774.0,59773.0,0.00250902]
[1726602656664,0.3608,59775.0,59773.0,0.00250902]
[1726602656866,0.083627,59774.0,59773.0,0.00250902]
[1726602657283,0.167254,59774.0,59773.0,0.00250902]
[1726602657466,0.19955907,59774.0,59773.0,0.00250902]
[1726602657775,0.11593207,59774.0,59773.0,0.00250902]
[1726602658079,0.083627,59774.0,59773.0,0.00250902]
[1726602658867,0.3608,59775.0,59773.0,0.00250902]
[1726602659069,0.083627,59774.0,59773.0,0.00250902]
[1726602659665,0.3608,59775.0,59774.0,0.083627]
[1726602659873,0.083627,59774.0,59773.0,0.00250902]
[1726602660269,0.3608,59775.0,59773.0,0.00250902]
[1726602660466,0.00085264,59779.0,59778.0,0.083621]
[1726602661780,0.00085264,59779.0,59774.0,0.1973]
[1726602661977,0.08447364,59779.0,59775.0,0.3608]
[1726602662175,0.00085264,59779.0,59775.0,0.444425]
[1726602662379,0.00085264,59779.0,59777.0,0.083622]
[1726602662573,0.00085264,59779.0,59775.0,0.3608]
[1726602662886,0.00085264,59779.0,59777.0,0.083623]
[1726602663176,0.31896687,59789.0,59778.0,0.12431379]
[1726602663382,0.31896687,59789.0,59786.0,0.0664612]
[1726602663577,0.083607,59788.0,59787.0,0.0664612]
[1726602663976,0.00250925,59792.0,59784.0,0.0830765]
[1726602664180,0.00250925,59792.0,59783.0,0.45]
[1726602664181,0.00250925,59792.0,59791.0,0.083603]
[1726602664485,1e-08,59792.0,59791.0,0.56817295]
[1726602664683,0.3608,59802.0,59794.0,0.00250855]
[1726602664872,0.3608,59802.0,59800.0,0.06642515]
[1726602665068,0.3608,59802.0,59801.0,0.083589]
[1726602665273,0.00250855,59805.0,59804.0,0.083585]
[1726602665482,0.00084,59813.0,59809.0,0.083578]
[1726602665681,0.00084,59813.0,59809.0,0.08295649]
[1726602665883,0.3608,59813.0,59810.0,0.20884216]
[1726602666075,0.083577,59810.0,59809.0,0.08295157]
[1726602666281,0.3608,59813.0,59806.0,0.08295157]
[1726602666473,0.3608,59813.0,59808.0,0.08295157]
[1726602666785,0.45,59832.0,59808.0,0.08295157]
[1726602666786,0.3608,59840.0,59812.0,0.8108]
[1726602666998,0.45,59835.0,59832.0,0.06627962]
[1726602667175,0.45,59835.0,59833.0,0.06618846]
[1726602667371,0.45,59835.0,59829.0,0.00250708]
[1726602667372,0.083549,59830.0,59829.0,0.36330708]
[1726602667675,0.083542,59835.0,59829.0,0.36330708]
[1726602667877,0.3608,59840.0,59830.0,0.08284953]
[1726602668177,0.083531,59843.0,59837.0,0.06618409]
[1726602668485,0.083531,59843.0,59841.0,0.06607992]
[1726602668782,0.083531,59843.0,59835.0,0.44364953]
[1726602668783,0.083533,59841.0,59837.0,0.06607992]
[1726602668983,0.45,59855.0,59840.0,0.7216]
[1726602669284,0.083518,59853.0,59852.0,0.04955554]
[1726602669474,0.083521,59850.0,59849.0,0.06607406]
[1726602669675,0.083521,59850.0,59848.0,0.06607406]
[1726602669873,0.00250673,59853.0,59847.0,0.42687406]
[1726602669874,0.083524,59848.0,59847.0,0.42687406]
[1726602670074,0.083524,59848.0,59847.0,0.3608]
[1726602670283,0.00250673,59853.0,59847.0,0.3608]
[1726602670492,0.00250673,59853.0,59852.0,0.3608]
[1726602670983,0.00250673,59853.0,59852.0,1.46204]
[1726602671285,0.3608,59866.0,59852.0,0.3608]
[1726602671488,0.16087293,59934.0,59933.0,0.083405]
[1726602671681,0.083284,60020.0,59933.0,0.083405]
[1726602671682,0.3508,60044.0,59988.0,0.3608]
[1726602671884,0.21003499,60044.0,60043.0,0.3608]
[1726602672085,0.19853499,60044.0,60043.0,1.1616]
[1726602672286,0.00618531,60049.0,60042.0,0.3608]
[1726602672287,0.49968,60043.0,60042.0,0.3608]
[1726602672592,0.3608,60051.0,60024.0,0.3608]
[1726602672593,0.44,60045.0,60024.0,0.3608]
[1726602672777,0.44,60030.0,60024.0,0.3608]
[1726602672974,0.49976,60029.0,60016.0,0.3608]
[1726602673278,0.25083788,60029.0,60016.0,0.3608]
[1726602673592,0.44,60024.0,60021.0,0.3608]
[1726602673792,0.25083788,60030.0,60021.0,0.3608]
[1726602674089,0.05473383,60023.0,60021.0,0.3608]
[1726602674285,0.33411188,60028.0,60021.0,0.3608]
[1726602674286,0.083274,60028.0,60021.0,0.3608]
[1726602674473,0.083274,60028.0,60027.0,0.3608]
[1726602674672,0.083257,60040.0,60027.0,0.3608]
[1726602674890,0.08326,60038.0,60036.0,0.3608]
[1726602675077,0.44,60034.0,60020.0,0.3608]
[1726602675279,0.44,60021.0,59996.0,0.3608]
[1726602675482,0.24857817,60037.0,59985.0,0.3608]
[1726602675483,0.083327,59990.0,59985.0,0.3608]
[1726602675676,0.083327,59990.0,59958.0,0.06607406]
[1726602675677,0.44,59989.0,59973.0,0.3608]
[1726602675880,0.3608,60005.0,59984.0,0.3608]
[1726602676089,0.083312,60000.0,59981.0,0.3608]
[1726602676291,0.24963447,60003.0,59987.0,0.3608]
[1726602676592,0.3608,60017.0,60001.0,0.3608]
[1726602676778,0.083289,60017.0,60008.0,0.3608]
[1726602677179,0.083292,60015.0,60008.0,0.3608]
[1726602677392,0.48084,60024.0,60008.0,0.3608]
[1726602677689,0.48084,60024.0,60013.0,0.3608]
[1726602677690,0.48,60022.0,60013.0,0.3608]
[1726602677881,0.083289,60017.0,60013.0,0.3608]
[1726602678079,0.48,60022.0,60013.0,0.3608]
[1726602678281,0.3608,60031.0,60021.0,0.3608]
[1726602678282,0.083281,60023.0,60021.0,0.3608]
[1726602678479,0.48,60030.0,60013.0,0.3608]
[1726602678480,0.3608,60029.0,60013.0,0.3608]
[1726602678689,0.3608,60023.0,60013.0,0.3608]
[1726602678985,0.48,60014.0,60004.0,0.00249983]
[1726602679183,0.563305,60005.0,60004.0,0.00249983]
[1726602679584,1.183265,60005.0,60004.0,0.00249983]
[1726602679787,1.183265,60005.0,60000.0,0.3608]
[1726602679788,1.662505,60005.0,60000.0,0.3608]
[1726602679990,1.662505,60005.0,59993.0,0.3608]
[1726602679991,0.083319,59995.0,59993.0,0.3608]
[1726602680179,0.48,60005.0,59993.0,0.3608]
[1726602680378,0.083313,60000.0,59993.0,0.3608]
[1726602680677,0.083317,59997.0,59993.0,0.3608]
[1726602680879,0.56332,59994.0,59992.0,1e-08]
[1726602681285,0.083344,59977.0,59973.0,0.3608]
[1726602681585,0.3608,59999.0,59973.0,0.3608]
[1726602681586,0.083338,59982.0,59976.0,0.3608]
[1726602681783,0.083338,59982.0,59981.0,0.3608]
[1726602682383,0.083313,59999.0,59981.0,0.3608]
[1726602682590,0.3608,60006.0,59992.0,0.3608]
[1726602682892,0.3442,60006.0,59992.0,0.3608]
[1726602683100,0.083312,60000.0,59999.0,0.00174319]
[1726602683797,0.083298,60010.0,59999.0,0.00174319]
[1726602683998,0.083298,60010.0,60009.0,0.3608]
[1726602684985,1.09992,60010.0,59999.0,0.00174319]
[1726602685302,0.083296,60012.0,60005.0,0.3608]
[1726602685595,0.083304,60006.0,60005.0,0.3608]
[1726602686186,0.8408,60024.0,60005.0,0.3608]
[1726602686387,0.00084,60024.0,60018.0,0.3608]
[1726602686583,0.00250027,60026.0,60018.0,0.3608]
[1726602686795,0.00250027,60026.0,60012.0,0.3608]
[1726602686796,1.0998,60026.0,60012.0,0.3608]
[1726602686998,0.48,60013.0,60000.0,0.3608]
[1726602687296,0.083311,60001.0,59999.0,1.9e-07]
[1726602687604,0.083313,59999.0,59998.0,0.26984719]
[1726602690193,0.083313,59999.0,59991.0,0.3608]
[1726602690194,0.083323,59992.0,59991.0,0.3608]
[1726602690397,0.083327,59989.0,59988.0,0.00250051]
[1726602690602,0.083327,59989.0,59988.0,5.1e-07]
[1726602691202,0.00250108,59992.0,59985.0,0.7216]
[1726602691401,0.08582408,59992.0,59991.0,0.3608]
[1726602692302,0.00250108,59992.0,59991.0,0.3608]
[1726602693104,0.00250091,60002.0,59991.0,0.3608]
[1726602693415,0.00250091,60002.0,60001.0,0.3608]
[1726602693702,0.00250091,60002.0,60001.0,0.7216]
[1726602693703,1e-08,60002.0,60001.0,0.7216]
[1726602694499,1e-08,60002.0,60001.0,0.72144]
[1726602695703,0.08330101,60002.0,60001.0,0.72144]
[1726602695893,0.3608,60026.0,60001.0,0.72144]
[1726602696094,0.083286,60013.0,60012.0,0.3608]
[1726602696294,0.083291,60009.0,60008.0,0.00249935]
[1726602697002,0.00249994,60013.0,60008.0,0.00249935]
[1726602697207,0.00249994,60013.0,60012.0,0.444087]
[1726602697703,0.3608,60036.0,60013.0,0.083285]
[1726602697893,0.083263,60029.0,60028.0,0.3608]
[1726602700497,1.349549,60029.0,60028.0,0.03955509]
[1726602700697,1.349549,60029.0,60022.0,0.3608]
[1726602700698,0.083268,60026.0,60022.0,0.3608]
[1726602701015,0.166544,60023.0,60022.0,0.3608]
[1726602701196,0.24974755,60023.0,60022.0,0.85426125]
[1726602701499,0.24974755,60023.0,60022.0,0.73835993]
[1726602701703,0.24974755,60023.0,60022.0,0.85425719]